{"text_format":"1","workbook":"xlsx","n_sheets":3,"sheets":["List1","List2","List3"],"not_rendered":{"charts":0,"images":0,"macros":0,"external_links":1,"defined_names":0,"comments":0,"pivot_tables":0},"unopened":[],"bounds":{"document_bytes":16777216,"sheet_cells":100000,"rows_first":2000,"rows_last":500,"rows_between":2000,"halvings":0,"cell_chars":16384,"cell_head_chars":4096},"cells_cut":0,"cells_raw":0,"read":"whole","date_system":"1900"}

{"sheet":"List1","index":0,"n_rows":86,"n_cols":9,"rows_kept":86,"cut":false,"hidden":false,"merged":[]}
[]
[]
["Obec , IČ: Náklo, 00299251"]
[]
["Rozpočtové opatření č. 1 - leden 2022"]
[]
["V souladu s ustanovením § 16 zákona č. 250/2000 Sb., o rozpočtových pravidlech územních rozpočtů dojde k rozpočtovému"]
["opatření v případě změn rozpočtových prostředků na závazných ukazatelích."]
[]
["Rozpočtové opatření č. 1/2022 (předloženo na Radě obce 10.1. 2022) a doplněno při jednání na Radě obce"]
[]
["PŘÍJMY"]
["PAR","POL","UZ","PARAGRAF","popis","Rozpočet na rok 2022","změna ROZP","ROZP po ZMĚNĚ","POZNÁMKA"]
[]
[]
[null,null,null,"Celkem ZMĚNY v PŘÍJMECH",null,33700619.700000003,0,33700619.700000003]
[]
[null,null,null,"Celkem PŘÍJMY",null,null,44461007.109999999,1827230.1900000002,46288237.299999997]
[]
["VÝDAJE:"]
["PAR","POL","UZ","PARAGRAF","popis","Rozpočet na rok 2022","změna ROZP","ROZP po ZMĚNĚ","POZNÁMKA"]
[6171,5222,null,null,"Neinvestiční transfery spolkům",6000,480,{"$f":"G22+F22","v":6480},"Sdružení místních samospráv - členský příspěvek na rok 2022"]
[6171,5329,null,null,"ostatní neivestiční transfery rozpočtům územní úrovně",45000,11979,{"$f":"G23+F23","v":56979},"členské příspěvky na rok 2022"]
[6171,5137,"",null,"Drobný hmotný dlouhodobý majetek ",30000,20000,{"$f":"G24+F24","v":50000},"Židle obecní úřad"]
[6171,5622,null,null,"Neinvestiční půjčené prostředky spolkům",275999,-275999,0,"návratná finanční výpomoc DSO Region Moravská cesta"]
[6171,5649,null,null,"Ostatní neinvestiční půjčené prostředky rozp.územní úrovně",0,275999,null,"návratná finanční výpomoc DSO Region Moravská cesta"]
[6171,5169,null,null,"Nákup ostatních služeb",1500000,-248102.96,{"$f":"G27+F27","v":1251897.04}]
[6171,null,null,"Činnost místní samosprávy",null,5427999,{"$f":"SUM(G22:G27)","v":-215643.96},{"$f":"G28+F28","v":5212355.04}]
[3729,5141,null,null,"úroky vlastní",5000,-5000,0]
[3729,5163,null,null,"služba peněžních ústavů",3000,-3000,0]
[3729,null,null,"Ostatní nakládání s odpady ",null,8000,-8000,0]
[2212,6121,null,null,"Budovy, haly a stavby",0,74112.5,74112.5,"Rekonstrukce silnice Mezice II. Etapa"]
[2212,null,null,"Silnice",null,479000,{"$f":"G32","v":74112.5},{"$f":"G33+F33","v":553112.5}]
[2219,6121,null,null,"Budovy, haly a stavby",0,82200.759999999995,{"$f":"G34","v":82200.759999999995},"Vjezd pí. Adamcová"]
[2219,null,null,"Ostátní záležitosti pozemních komunikací",null,247510,{"$f":"G34","v":82200.759999999995},{"$f":"G35+F35","v":329710.76}]
[2292,5339,null,null,"Neinvestiční transfery cizím přísp.org.",260000,-16566.2,{"$f":"F36+G36","v":243433.8},"dopravní obslužnost - oprava částky"]
[2292,null,null,"Dopravní obslužnost",null,260000,{"$f":"G36","v":-16566.2},{"$f":"H36","v":243433.8}]
[3314,5168,null,null,"Zpracování dat a služby souv. S inf. A kom. Technol",0,1815,1815,"Tritius"]
[3314,5169,null,null,"Nákup ostatních služeb",5000,-1815,{"$f":"G39+F39","v":3185}]
[3314,null,null,"Činnosti knihovnické",null,{"$f":"43000","v":43000},{"$f":"G39+G38","v":0},{"$f":"G40+F40","v":43000}]
[3612,6121,null,null,"Budovy, haly a stavby ",0,42882.400000000001,{"$f":"G41+F41","v":42882.400000000001},"L39"]
[3612,null,null,"Bytové hospodářství",null,210000,{"$f":"G41","v":42882.400000000001},252882.4]
[3613,5153,null,null,"Plyn",0,10000,10000,"N107"]
[3613,null,null,"Nebytové hospodářství",null,51000,{"$f":"G43","v":10000},61000]
[3631,5171,null,null,"opravy a udržování",50000,-10000,{"$f":"G45+F45","v":40000}]
[3631,6121,null,null,"Stavby",20000,10000,{"$f":"G46+F46","v":30000},"osvětlení"]
[3631,null,null,"Veřejné osvětlení",null,300000,{"$f":"G46+G45","v":0},300000]
[3639,6130,null,null,"Pozemky",54935.7,4448.3,59384,"doplatek Zvěřovo"]
[3639,6121,null,null,"Budovy, haly a stavby ",950000,{"$f":"16566.2+8000","v":24566.2},974566.2,"výkup pozemků projekt Nad Strání"]
[3639,null,null," Komunální služby a územní rozvoj j.n",null,7667935.700000003,{"$f":"SUM(G49)+G48","v":29014.5},7696950.200000003]
[3341,5169,null,null,"Nákup ostatních služeb",3000,2000,{"$f":"G51+F51","v":5000},"poplatek kminočet"]
[3341,null,null,"Rozhlas a Televize",null,6000,{"$f":"G51","v":2000},{"$f":"G52+F52","v":8000}]
[]
[null,null,null,"Celkem ZMĚNY ve VÝDAJÍCH",null,33700619.700000003,{"$f":"G37+G31+G28+G35+G33+G50+G42+G44+G40+G52","v":-2.1827872842550278E-11},{"$f":"G54+F54","v":33700619.700000003}]
[]
[null,null,null,"Celkem VÝDAJE",null,null,{"$f":"F54","v":33700619.700000003},{"$f":"G54","v":-2.1827872842550278E-11},{"$f":"H54","v":33700619.700000003}]
[]
[null,null,null,"Celkem 5XXX"]
[null,null,null,"Celkem 6XXX"]
[]
[]
["FINANCOVÁNÍ"]
["PAR","POL","UZ","PARAGRAF","popis","Rozpočet na rok 2022","změna ROZP","ROZP po ZMĚNĚ","POZNÁMKA"]
[]
[]
[null,null,null,"Celkem ZMĚNY ve FINANCOVÁNÍ:",null,null,null,{"$f":"H64","v":0}]
[]
[]
[null,null,null,"REKAPITULACE:"]
[]
[null,null,null,"Celkem PŘÍJMY",null,null,{"$f":"F16","v":33700619.700000003},null,{"$f":"H71+G71","v":33700619.700000003}]
[null,null,null,"Celkem FINANCOVÁNÍ:",null,null,0,{"$f":"H66","v":0},{"$f":"H72+G72","v":0}]
[null,null,null,"Celkem PŘÍJMY+FINANCOVÁNÍ",null,null,{"$f":"SUM(G71:G72)","v":33700619.700000003},null,{"$f":"I72+I71","v":33700619.700000003}]
[]
[null,null,null,"Celkem VÝDAJE",null,null,{"$f":"F54","v":33700619.700000003},null,{"$f":"I73","v":33700619.700000003}]
[]
[]
["Důvodová zpráva k rozpočtovému opatření č. 1 /2022"]
[]
["Přesun prostředků v rámci nezajištěného výdaje je Čerpán z rezervy obce."]
[]
["Správce rozpočtu : "]
[]
["Starosta obce : "]
[]
["Rada obce schvaluje dne 10. 1. 2022 rozpočtové opatření č. 1/2022 v předloženém rozsahu."]

{"sheet":"List2","index":1,"n_rows":24,"n_cols":1,"rows_kept":24,"cut":false,"hidden":false,"merged":[]}
["TEXTY PRO FORMULÁŘ ÚPRAVA ROZPOČTU - na začátek kopírují se řádky 3-13"]
["poznámka: Texty, které budou přenášeny z tohoto formuláře, musí být zapsány pouze ve sloupci A"]
[]
[]
["Obec , IČ: Náklo, 00299251"]
[]
["Rozpočtové změny roku 2019 -duben"]
[]
["V souladu s ustanovením § 16 zákona č. 250/2000 Sb., o rozpočtových pravidlech územních rozpočtů dojde k rozpočtovému"]
["opatření v případě změn rozpočtových prostředků na závazných ukazatelích."]
[]
["Rozpočtové opatření č. 1/2019 (předloženo na ZQ 6. 6. 2018) a doplněno při jednání na ZO"]
[]
["TEXTY PRO FORMULÁŘ ÚPRAVA ROZPOČTU - na začátek kopírují se řádky 16-32"]
[]
["Důvodová zpráva k rozpočtovému opatření č. 1/2019"]
[]
["Přesun prostředků v rámci nezajištěného výdaje je Čerpán z rezervy obce."]
[]
["Správce rozpočtu : "]
[]
["Starosta obce : "]
[]
["ZO schvaluje dne 6. 6. 2018 rozpočtové opatření č. 3/2018 v předloženém rozsahu Usnesením č. 1038/1860"]

{"sheet":"List3","index":2,"n_rows":0,"n_cols":0,"rows_kept":0,"cut":false,"hidden":false,"merged":[]}